bitfinex-derivatives/quotes_BTCF0:USTF0_20240814
["timestamp","ask_amount","ask_price","bid_price","bid_amount"]
[1723622404874,0.118,60942.0,60940.0,0.001]
[1723622405276,0.1155,60942.0,60941.0,0.082014]
[1723622405672,0.1075,60942.0,60941.0,0.3267386]
[1723622405877,0.1145,60942.0,60941.0,0.7364752]
[1723622406065,0.1145,60942.0,60941.0,0.1724472]
[1723622406271,0.196513,60942.0,60941.0,0.08121861]
[1723622406471,0.082014,60941.0,60939.0,0.001]
[1723622406678,0.1856076,60941.0,60939.0,0.0662107]
[1723622406872,0.1856076,60941.0,60940.0,0.0652107]
[1723622407076,0.12,60941.0,60939.0,0.002]
[1723622407781,0.12,60941.0,60939.0,0.08449346]
[1723622408580,0.12,60941.0,60939.0,0.08249346]
[1723622408779,0.12,60941.0,60939.0,0.082016]
[1723622408978,0.12,60941.0,60939.0,0.16350946]
[1723622409187,0.122,60941.0,60939.0,0.16350946]
[1723622409384,0.122,60941.0,60940.0,0.16350846]
[1723622409582,0.122,60941.0,60940.0,0.16304454]
[1723622411174,0.12,60941.0,60940.0,0.16304454]
[1723622411381,0.123,60941.0,60940.0,0.16304454]
[1723622412687,0.123,60941.0,60940.0,0.16300174]
[1723622412889,0.122,60941.0,60940.0,0.16300174]
[1723622413888,0.122,60941.0,60940.0,0.08298674]
[1723622414084,0.12,60941.0,60940.0,0.16444232]
[1723622414283,0.12,60941.0,60940.0,0.002]
[1723622414493,0.12,60941.0,60940.0,0.08345558]
[1723622414679,0.202014,60941.0,60940.0,0.002]
[1723622415591,0.164042,60936.0,60935.0,0.06544083]
[1723622415887,0.644842,60936.0,60935.0,0.04914828]
[1723622416089,0.644842,60936.0,60929.0,0.06519472]
[1723622416090,0.082026,60932.0,60929.0,0.06519472]
[1723622416297,0.082029,60930.0,60929.0,0.06519472]
[1723622416589,0.082032,60928.0,60927.0,0.43576739]
[1723622416789,0.182032,60928.0,60927.0,0.43576739]
[1723622417392,0.182032,60928.0,60927.0,0.42599472]
[1723622417589,0.182032,60928.0,60927.0,0.3608]
[1723622419404,0.182032,60928.0,60927.0,0.36896738]
[1723622419791,0.182032,60928.0,60927.0,0.3608]
[1723622420096,0.082033,60927.0,60926.0,0.0095585]
[1723622420291,0.082033,60927.0,60925.0,0.06519472]
[1723622420692,0.37104611,60934.0,60927.0,0.082032]
[1723622420891,0.00024611,60934.0,60931.0,0.0488139]
[1723622421301,0.00024611,60934.0,60932.0,0.0488139]
[1723622422300,0.00024611,60934.0,60933.0,0.06519472]
[1723622422505,0.00024611,60934.0,60933.0,0.242025]
[1723622423607,0.00024611,60934.0,60933.0,0.355425]
[1723622423906,0.00324611,60934.0,60933.0,0.355425]
[1723622424299,0.00424611,60934.0,60933.0,0.355425]
[1723622425312,0.00624611,60934.0,60933.0,0.355425]
[1723622425607,0.00424611,60934.0,60933.0,0.360425]
[1723622426505,0.00524611,60934.0,60933.0,0.360425]
[1723622427525,0.00124611,60934.0,60933.0,0.360425]
[1723622427815,0.00124611,60934.0,60933.0,0.363425]
[1723622428014,0.00124611,60934.0,60933.0,0.365425]
[1723622428904,0.00124611,60934.0,60933.0,0.358425]
[1723622428905,0.00024611,60934.0,60933.0,0.358425]
[1723622429213,0.00124611,60934.0,60933.0,0.365425]
[1723622429804,0.00224611,60934.0,60933.0,0.368425]
[1723622430015,0.00224611,60934.0,60933.0,0.4334619]
[1723622430407,0.00224611,60934.0,60933.0,0.1914369]
[1723622430907,0.08426911,60934.0,60933.0,0.1264]
[1723622432416,0.08426911,60934.0,60933.0,0.2664]
[1723622433409,0.08426911,60934.0,60933.0,0.153]
[1723622433612,0.27969211,60934.0,60933.0,0.013]
[1723622435706,0.77205211,60934.0,60933.0,0.013]
[1723622435907,0.77305211,60934.0,60933.0,0.006]
[1723622436108,1.17305211,60934.0,60933.0,0.006]
[1723622436312,0.082024,60932.0,60931.0,0.04877142]
[1723622436516,0.16405,60931.0,60930.0,0.04877142]
[1723622436720,0.35125,60931.0,60930.0,0.04877142]
[1723622437207,0.164054,60930.0,60929.0,0.04877142]
[1723622437409,0.164054,60930.0,60921.0,0.00024611]
[1723622437410,0.082031,60927.0,60926.0,0.04878654]
[1723622437714,0.082032,60926.0,60925.0,0.04878654]
[1723622437911,0.082034,60925.0,60924.0,0.04878654]
[1723622438113,0.082034,60925.0,60924.0,0.16218654]
[1723622439921,0.083034,60925.0,60924.0,0.16818654]
[1723622440416,0.083034,60925.0,60924.0,0.1194]
[1723622441216,0.083034,60925.0,60924.0,0.16818654]
[1723622441515,0.083034,60925.0,60924.0,0.1194]
[1723622442623,0.197434,60925.0,60924.0,0.013]
[1723622443917,0.361502,60925.0,60924.0,0.013]
[1723622444116,0.504902,60925.0,60924.0,0.013]
[1723622445325,0.153634,60925.0,60924.0,0.1264]
[1723622445620,0.153634,60925.0,60924.0,0.1194]
[1723622445621,0.083034,60925.0,60924.0,0.1194]
[1723622446020,0.278468,60925.0,60924.0,0.006]
[1723622446619,1.170868,60925.0,60924.0,0.006]
[1723622447222,0.164076,60922.0,60921.0,0.00024611]
[1723622447422,0.277476,60922.0,60921.0,0.00024611]
[1723622451728,0.280476,60922.0,60921.0,0.00024611]
[1723622451923,0.641276,60922.0,60921.0,0.00024611]
[1723622453117,0.08205,60913.0,60912.0,0.08458351]
[1723622453326,0.08205,60913.0,60912.0,0.0748]
[1723622453631,0.1641,60913.0,60912.0,0.0748]
[1723622453832,0.1641,60913.0,60908.0,0.0744]
[1723622453833,0.082055,60909.0,60908.0,0.0744]
[1723622454028,0.195455,60909.0,60908.0,0.0744]
[1723622454228,0.195455,60909.0,60908.0,0.1878]
[1723622454229,0.082055,60909.0,60908.0,0.1878]
[1723622454428,0.082055,60909.0,60908.0,0.19744638]
[1723622456235,0.36104611,60915.0,60908.0,0.19744638]
[1723622456236,0.00024611,60915.0,60908.0,0.19744638]
[1723622456530,0.08229411,60915.0,60914.0,0.1134]
[1723622457135,0.08205,60914.0,60912.0,0.1134]
[1723622457432,0.08205,60913.0,60912.0,0.1134]
[1723622457631,0.08205,60913.0,60909.0,0.1134]
[1723622457837,0.1134,60911.0,60909.0,0.1134]
[1723622458027,0.195453,60911.0,60909.0,0.1134]
[1723622458729,0.082054,60910.0,60909.0,0.1134]
[1723622460528,0.00024611,60915.0,60914.0,0.082048]
[1723622460740,0.00024611,60915.0,60914.0,0.195448]
[1723622461038,0.00024611,60915.0,60914.0,0.1134]
[1723622462236,0.00024611,60915.0,60914.0,0.195448]
[1723622462439,0.08205,60913.0,60912.0,0.1134]
[1723622462928,0.08205,60913.0,60912.0,0.16225068]
[1723622463537,0.08205,60913.0,60912.0,0.1134]
[1723622465742,0.08305,60913.0,60912.0,0.1134]
[1723622466741,0.08305,60913.0,60912.0,0.1784369]
[1723622467532,0.08305,60913.0,60912.0,0.1134]
[1723622467747,0.08305,60913.0,60912.0,0.17861307]
[1723622467946,0.08305,60913.0,60912.0,0.1134]
[1723622468139,0.08205,60913.0,60912.0,0.1134]
[1723622468539,0.08205,60913.0,60912.0,0.17861307]
[1723622468939,0.08305,60913.0,60912.0,0.17861307]
[1723622469539,0.08305,60913.0,60912.0,0.1134]
[1723622469944,0.001,60913.0,60912.0,0.1134]
[1723622470342,0.001,60913.0,60912.0,0.195451]
[1723622470743,0.001,60913.0,60912.0,0.345451]
[1723622471548,0.08305,60913.0,60912.0,0.2634]
[1723622471944,0.08205,60913.0,60912.0,0.2634]
[1723622472337,0.08205,60913.0,60912.0,0.32865743]
[1723622472542,0.08205,60913.0,60912.0,0.2634]
[1723622472747,0.08205,60913.0,60912.0,0.32867332]
[1723622473540,0.08205,60913.0,60912.0,0.2634]
[1723622473846,0.11364611,60915.0,60912.0,0.06529268]
[1723622474151,0.0658224,60915.0,60913.0,0.04897331]
[1723622474339,0.06557629,60914.0,60913.0,0.04897331]
[1723622474536,0.17897629,60914.0,60913.0,0.04897331]
[1723622474735,0.17897629,60914.0,60912.0,0.04897331]
[1723622474736,0.1641,60913.0,60912.0,0.04897331]
[1723622474943,0.082052,60911.0,60910.0,0.04897331]
[1723622475142,0.082054,60910.0,60909.0,0.04897331]
[1723622475352,0.082055,60909.0,60908.0,0.12337331]
[1723622475540,0.082055,60909.0,60908.0,0.0744]
[1723622476344,0.082055,60909.0,60908.0,0.13969268]
[1723622476747,0.082055,60909.0,60908.0,0.0744]
[1723622478851,0.082055,60909.0,60907.0,0.1134]
[1723622479054,0.082056,60908.0,60907.0,0.1134]
[1723622479852,0.082058,60907.0,60906.0,0.06529268]
[1723622480047,0.082058,60907.0,60905.0,0.08236547]
[1723622480048,0.195458,60907.0,60905.0,0.0652749]
[1723622480247,0.574619,60906.0,60905.0,0.0489663]
[1723622480551,0.49256,60906.0,60900.0,0.0489663]
[1723622480749,0.51504,60907.0,60900.0,0.0489663]
[1723622480750,0.4742,60903.0,60900.0,0.0489663]
[1723622480947,0.4742,60903.0,60899.0,0.0489663]
[1723622481454,0.53973678,60903.0,60898.0,0.0489663]
[1723622481655,0.50839978,60903.0,60901.0,0.1134]
[1723622481859,0.442863,60903.0,60901.0,0.1134]
[1723622482356,0.3608,60903.0,60901.0,0.1134]
[1723622482556,0.082059,60907.0,60901.0,0.182]
[1723622482751,0.082059,60907.0,60905.0,0.1134]
[1723622483851,0.082059,60906.0,60905.0,0.1134]
[1723622485951,0.082059,60906.0,60903.0,0.0742]
[1723622487257,0.082059,60906.0,60903.0,0.12311445]
[1723622487651,0.3608,60904.0,60902.0,0.04916056]
[1723622487852,0.3608,60904.0,60902.0,0.00024611]
[1723622488254,0.442862,60904.0,60902.0,0.00024611]
[1723622489057,0.082063,60903.0,60902.0,0.00024611]
[1723622491554,0.082063,60903.0,60902.0,0.04916056]
[1723622492371,0.082063,60903.0,60902.0,0.00024611]
[1723622494465,0.084063,60903.0,60902.0,0.00024611]
[1723622495155,0.082063,60903.0,60902.0,0.00024611]
[1723622497578,0.082063,60903.0,60902.0,0.04916056]
[1723622498172,0.082063,60903.0,60902.0,0.00024611]
[1723622498977,0.192063,60903.0,60902.0,0.00024611]
[1723622501177,0.274126,60903.0,60902.0,0.00024611]
[1723622501383,0.33966278,60903.0,60902.0,0.00024611]
[1723622501569,0.274126,60903.0,60902.0,0.00024611]
[1723622502377,0.278126,60903.0,60902.0,0.00024611]
[1723622504074,0.770726,60903.0,60902.0,0.00024611]
[1723622506484,0.08207,60898.0,60897.0,0.04891445]
[1723622506685,0.44287,60898.0,60897.0,0.04891445]
[1723622507583,0.082074,60895.0,60894.0,0.0652749]
[1723622507787,0.082074,60895.0,60894.0,0.07482755]
[1723622508283,0.082074,60895.0,60891.0,0.09057905]
[1723622508284,0.082078,60892.0,60891.0,0.00850005]
[1723622508476,0.082078,60892.0,60891.0,0.01837569]
[1723622508677,0.082078,60892.0,60891.0,0.00850005]
[1723622509881,0.083078,60892.0,60891.0,0.12200005]
[1723622513699,0.084078,60892.0,60891.0,0.12200005]
[1723622519790,0.084078,60892.0,60891.0,0.00850005]
[1723622520894,0.084078,60892.0,60891.0,0.12200005]
[1723622522788,0.084078,60892.0,60891.0,0.20345563]
[1723622523185,0.084078,60892.0,60891.0,0.29151605]
[1723622524085,0.002,60892.0,60891.0,0.37359505]
[1723622524393,0.002,60892.0,60891.0,0.29213947]
[1723622526096,0.002,60892.0,60891.0,0.17863947]
[1723622531592,0.084078,60892.0,60891.0,0.17038574]
[1723622531992,0.084078,60892.0,60891.0,0.00024632]
[1723622531993,0.526956,60892.0,60891.0,0.00024632]
[1723622532187,0.082079,60891.0,60890.0,0.0001542]
[1723622532393,0.164158,60891.0,60890.0,0.0001542]
[1723622532793,0.164158,60891.0,60890.0,0.04921885]
[1723622532989,0.190771,60891.0,60890.0,0.0001542]
[1723622533192,0.164158,60891.0,60890.0,0.0001542]
[1723622533790,0.19077118,60891.0,60890.0,0.0001542]
[1723622534299,0.24619233,60891.0,60890.0,0.0001542]
[1723622535292,0.164158,60891.0,60890.0,0.0001542]
[1723622540098,0.082079,60891.0,60890.0,0.0001542]
[1723622545992,0.195579,60891.0,60890.0,0.0001542]
[1723622546795,0.26112891,60891.0,60890.0,0.0001542]
[1723622548393,0.195579,60891.0,60890.0,0.0001542]
[1723622548708,0.556379,60891.0,60890.0,0.0001542]
[1723622549002,0.195579,60891.0,60890.0,0.0001542]
[1723622549197,0.558379,60891.0,60890.0,0.0001542]
[1723622549399,0.556379,60891.0,60890.0,0.0001542]
[1723622549908,0.195579,60891.0,60890.0,0.0001542]
[1723622550206,0.62491786,60891.0,60890.0,0.0001542]
[1723622550600,0.71099686,60891.0,60890.0,0.0001542]
[1723622550997,0.62891786,60891.0,60890.0,0.0001542]
[1723622552297,0.26711786,60891.0,60890.0,0.0001542]
[1723622552504,0.62791786,60891.0,60890.0,0.0001542]
[1723622553193,0.71099686,60891.0,60890.0,0.0001542]
[1723622553395,0.84099686,60891.0,60890.0,0.0001542]
[1723622553798,0.75891786,60891.0,60890.0,0.0001542]
[1723622555308,0.775458,60891.0,60890.0,0.0001542]
[1723622558809,0.693379,60891.0,60890.0,0.0001542]
[1723622559212,0.775458,60891.0,60890.0,0.0001542]
[1723622560011,0.16417,60887.0,60886.0,0.04900761]
[1723622560307,0.082087,60885.0,60884.0,0.0655898]
[1723622560500,0.524974,60885.0,60884.0,0.0655898]
[1723622560698,0.524974,60885.0,60884.0,0.00024632]
[1723622561110,0.52511114,60885.0,60884.0,0.00024632]
[1723622561310,0.60703472,60885.0,60884.0,0.00024632]
[1723622562812,0.69703472,60885.0,60884.0,0.00024632]
[1723622563108,1.18975472,60885.0,60884.0,0.00024632]
[1723622563309,1.13444717,60885.0,60884.0,0.00024632]
[1723622564201,1.10783114,60885.0,60884.0,0.00024632]
[1723622564708,0.52511114,60885.0,60884.0,0.00024632]
[1723622564911,0.14783802,60885.0,60884.0,0.00024632]
[1723622565215,0.09022414,60885.0,60884.0,0.00024632]
[1723622565611,0.09022414,60885.0,60884.0,0.00987984]
[1723622566111,0.09022414,60885.0,60884.0,0.07522332]
[1723622567415,0.09022414,60885.0,60884.0,0.00987984]
[1723622568409,0.09922414,60885.0,60884.0,0.00987984]
[1723622570218,0.09922414,60885.0,60884.0,0.09196984]
[1723622570917,0.19922414,60885.0,60884.0,0.09196984]
[1723622571308,0.19922414,60885.0,60884.0,0.00987984]
[1723622571709,0.31272414,60885.0,60884.0,0.00987984]
[1723622571914,0.31272414,60885.0,60884.0,0.05896058]
[1723622572308,0.31272414,60885.0,60884.0,0.00987984]
[1723622572705,0.31272414,60885.0,60884.0,0.05896489]
[1723622573308,0.67352414,60885.0,60884.0,0.00987984]
[1723622573513,0.56002414,60885.0,60884.0,0.12337984]
[1723622573713,0.67352414,60885.0,60884.0,0.00987984]
[1723622573920,0.73913802,60885.0,60884.0,0.00987984]
[1723622574117,0.73913802,60885.0,60884.0,0.05896905]
[1723622574325,0.67352414,60885.0,60884.0,0.05896905]
[1723622576716,0.67352414,60885.0,60884.0,0.00987984]
[1723622577217,0.67352414,60885.0,60884.0,0.00024632]
[1723622577218,0.83763386,60885.0,60884.0,0.00024632]
[1723622577411,0.67352414,60885.0,60884.0,0.00024632]
[1723622577915,0.67352414,60885.0,60884.0,0.04933542]
[1723622578116,0.67352414,60885.0,60884.0,0.00024632]
[1723622578315,0.67352414,60885.0,60884.0,0.04933298]
[1723622578710,0.31272414,60885.0,60884.0,0.04933298]
[1723622579423,0.67352414,60885.0,60884.0,0.04933298]
[1723622579816,0.67352414,60885.0,60884.0,0.00024632]
[1723622580621,0.56002414,60885.0,60884.0,0.0655898]
[1723622581825,0.56002414,60885.0,60884.0,0.1476788]
[1723622583112,0.19922414,60885.0,60884.0,0.1476788]
[1723622584221,0.01772134,60889.0,60886.0,0.082087]
[1723622584519,0.442874,60896.0,60887.0,0.1564563]
[1723622584722,0.556374,60896.0,60891.0,0.1952606]
[1723622584912,0.195577,60893.0,60892.0,0.1279]
[1723622585423,0.082077,60893.0,60892.0,0.1279]
[1723622586013,0.082077,60893.0,60892.0,0.19328864]
[1723622586217,0.082077,60893.0,60892.0,0.1279]
[1723622586420,0.3608,60896.0,60892.0,0.19327288]
[1723622586725,0.4743,60896.0,60894.0,0.06536833]
[1723622587517,0.556373,60896.0,60894.0,0.06536833]
[1723622587717,0.556373,60896.0,60894.0,0.17886833]
[1723622588518,0.565373,60896.0,60894.0,0.17986833]
[1723622589022,0.451873,60896.0,60894.0,0.17986833]
[1723622589319,0.451873,60896.0,60895.0,0.082075]
[1723622589720,0.451873,60896.0,60895.0,0.13107078]
[1723622590026,0.3698,60896.0,60895.0,0.13107078]
[1723622590721,0.3608,60896.0,60895.0,0.13107078]
[1723622590927,0.3688,60896.0,60895.0,0.13107078]
[1723622591226,0.3688,60896.0,60895.0,0.082075]
[1723622592419,0.008,60896.0,60895.0,0.082075]
[1723622593023,0.008,60896.0,60895.0,0.13107078]
[1723622593328,0.009,60896.0,60895.0,0.001]
[1723622594328,0.009,60896.0,60895.0,0.083075]
[1723622594528,0.009,60896.0,60895.0,0.443875]
[1723622598221,0.009,60896.0,60895.0,0.50911195]
[1723622600331,0.009,60896.0,60895.0,0.443875]
[1723622603333,0.009,60896.0,60895.0,0.603875]
[1723622603929,0.009,60896.0,60895.0,0.65280968]
[1723622604129,0.009,60896.0,60895.0,0.603875]
[1723622604832,0.009,60896.0,60895.0,0.717375]
[1723622605128,0.091073,60896.0,60895.0,0.6353]
[1723622605927,0.091073,60896.0,60895.0,0.2745]
[1723622606126,0.091073,60896.0,60895.0,0.001]
[1723622606326,0.091073,60896.0,60895.0,0.04995273]
[1723622606525,0.091073,60896.0,60895.0,0.001]
[1723622607136,0.091073,60896.0,60895.0,0.04995273]
[1723622607435,0.091073,60896.0,60895.0,0.16345273]
[1723622608331,0.091073,60896.0,60895.0,0.1145]
[1723622609028,0.091073,60896.0,60895.0,0.16350405]
[1723622609236,0.091073,60896.0,60895.0,0.1145]
[1723622612337,0.091073,60896.0,60895.0,0.17973695]
[1723622613244,0.091073,60896.0,60895.0,0.1145]
[1723622613441,0.091073,60896.0,60895.0,0.196574]
[1723622613626,0.009,60896.0,60895.0,0.196574]
[1723622614533,0.009,60896.0,60895.0,0.2783346]
[1723622616140,0.009,60896.0,60895.0,0.37273863]
[1723622616642,0.009,60896.0,60895.0,0.196574]
[1723622617140,0.009,60896.0,60895.0,0.2783346]
[1723622617342,0.009,60896.0,60895.0,0.196574]
[1723622617641,0.091073,60896.0,60895.0,0.0827606]
[1723622617935,0.091073,60896.0,60895.0,0.001]
[1723622618333,0.091073,60896.0,60895.0,0.1771526]
[1723622619537,0.091073,60896.0,60895.0,0.0827606]
[1723622621131,0.091073,60896.0,60895.0,0.25923335]
[1723622621934,0.091073,60896.0,60895.0,0.1648356]
[1723622622137,0.091073,60896.0,60895.0,0.25924577]
[1723622622335,0.091073,60896.0,60895.0,0.1648356]
[1723622624542,0.091073,60896.0,60895.0,0.25929025]
[1723622625636,0.091073,60896.0,60895.0,0.1648356]
[1723622627236,0.091073,60896.0,60895.0,0.25927662]
[1723622627743,0.091073,60896.0,60895.0,0.1648356]
[1723622628143,0.091073,60896.0,60895.0,0.2592816]
[1723622629243,0.091073,60896.0,60895.0,0.25921342]
[1723622630339,0.091073,60896.0,60895.0,0.17713842]
[1723622630649,0.091073,60896.0,60895.0,0.001]
[1723622631343,0.091073,60896.0,60895.0,0.17748519]
[1723622631544,0.091073,60896.0,60895.0,0.0827606]
[1723622632250,0.091073,60896.0,60895.0,0.001]
[1723622633246,0.091073,60896.0,60895.0,0.0827606]
[1723622633549,0.091073,60896.0,60895.0,0.001]
[1723622633749,0.091073,60896.0,60895.0,0.0827606]
[1723622634848,0.091073,60896.0,60895.0,0.1962606]
[1723622636249,0.009,60896.0,60895.0,0.2783356]
[1723622636451,0.009,60896.0,60895.0,0.196575]
[1723622639750,0.009,60896.0,60895.0,0.2783356]
[1723622640056,0.091073,60896.0,60895.0,0.001]
[1723622642052,0.376646,60896.0,60895.0,0.001]
[1723622642252,0.376646,60896.0,60880.0,0.3608]
[1723622642253,0.082083,60889.0,60883.0,0.09801522]
[1723622642442,0.524976,60885.0,60884.0,0.08221148]
[1723622642649,0.524976,60885.0,60884.0,0.00024632]
[1723622642957,0.638476,60885.0,60884.0,0.00024632]
[1723622643151,0.556388,60885.0,60884.0,0.00024632]
[1723622644348,0.62198689,60885.0,60884.0,0.00224632]
[1723622644546,0.556388,60885.0,60884.0,0.00224632]
[1723622645167,0.638476,60885.0,60884.0,0.00224632]
[1723622645456,0.082099,60877.0,60876.0,0.05724433]
[1723622645651,0.442899,60877.0,60875.0,0.2337044]
[1723622645857,0.442899,60877.0,60875.0,0.24194365]
[1723622646555,0.442899,60877.0,60875.0,0.1928066]
[1723622646556,0.0821,60876.0,60875.0,0.1928066]
[1723622648653,0.0821,60876.0,60875.0,0.1958066]
[1723622649254,0.0821,60876.0,60875.0,0.24494365]
[1723622649449,0.0821,60876.0,60875.0,0.1958066]
[1723622651056,0.0831,60876.0,60875.0,0.1958066]
[1723622655565,0.0831,60876.0,60875.0,0.0823066]
[1723622655958,0.2787,60876.0,60875.0,0.0643]
[1723622656158,0.2787,60876.0,60875.0,0.003]
[1723622660066,0.082107,60871.0,60870.0,0.18327467]
[1723622660271,0.442907,60871.0,60870.0,0.18327467]
[1723622664059,0.442907,60871.0,60870.0,0.06977467]
[1723622664870,0.442907,60871.0,60870.0,0.06016434]
[1723622664871,0.556407,60871.0,60870.0,0.06016434]
[1723622665065,0.556407,60871.0,60870.0,0.00016434]
[1723622666373,0.638514,60871.0,60870.0,0.00016434]
[1723622667078,0.277714,60871.0,60870.0,0.00016434]
[1723622667377,0.638514,60871.0,60870.0,0.00016434]
[1723622671082,0.525014,60871.0,60870.0,0.00016434]
[1723622671381,0.638514,60871.0,60870.0,0.00016434]
[1723622672169,0.64813642,60871.0,60870.0,0.00016434]
[1723622673882,0.28733642,60871.0,60870.0,0.00016434]
[1723622674273,0.64813642,60871.0,60870.0,0.00016434]
[1723622675480,0.64813642,60871.0,60870.0,0.04930139]
[1723622675877,0.64813642,60871.0,60870.0,0.00016434]
[1723622676582,0.64813642,60871.0,60870.0,0.04930139]
[1723622676979,0.525014,60871.0,60870.0,0.04930139]
[1723622677179,0.638514,60871.0,60870.0,0.04930139]
[1723622677677,0.7040466,60871.0,60870.0,0.04930139]
[1723622678077,0.7040466,60871.0,60870.0,0.00016434]
[1723622678078,0.638514,60871.0,60870.0,0.00016434]
[1723622678277,0.638514,60871.0,60870.0,0.04932784]
[1723622678479,0.7040466,60871.0,60870.0,0.04933192]
[1723622679471,0.7040466,60871.0,60870.0,0.04933597]
[1723622680376,0.7040466,60871.0,60870.0,0.00016434]
[1723622680790,0.7040466,60871.0,60870.0,0.04934108]
[1723622681278,0.638514,60871.0,60870.0,0.00016434]
[1723622683472,0.556407,60871.0,60870.0,0.00016434]
[1723622685482,0.556407,60871.0,60870.0,0.06575535]
[1723622686479,0.442907,60871.0,60870.0,0.00016434]
[1723622688188,0.082111,60868.0,60867.0,0.0562]
[1723622688378,0.195611,60868.0,60867.0,0.0562]
[1723622689092,0.556411,60868.0,60867.0,0.0562]
[1723622689477,0.557411,60868.0,60867.0,0.0562]
[1723622690584,0.56701677,60868.0,60867.0,0.0562]
[1723622690978,0.56701677,60868.0,60867.0,0.13816516]
[1723622690979,0.27192838,60868.0,60867.0,0.13816516]
[1723622691289,0.63272838,60868.0,60867.0,0.14116516]
[1723622691785,0.56701677,60868.0,60867.0,0.0592]
[1723622693290,0.082112,60867.0,60862.0,0.06572053]
[1723622693486,0.556418,60863.0,60862.0,0.06572053]
[1723622694389,0.082119,60862.0,60861.0,0.06572053]
[1723622695491,0.47610001,60863.0,60860.0,0.12452053]
[1723622695492,0.08212,60861.0,60860.0,0.12452053]
[1723622695682,0.1477642,60861.0,60860.0,0.12452053]
[1723622696382,0.08212,60861.0,60860.0,0.12452053]
[1723622697493,0.08212,60861.0,60860.0,0.0588]
[1723622698182,0.1477642,60861.0,60860.0,0.0588]
[1723622698390,0.14773706,60861.0,60860.0,0.0588]
[1723622698884,0.14973706,60861.0,60860.0,0.0588]
[1723622699283,0.15972251,60861.0,60860.0,0.0588]
[1723622699486,0.15972251,60861.0,60860.0,0.1080085]
[1723622700385,0.14973706,60861.0,60860.0,0.1080085]
[1723622701190,0.002,60861.0,60860.0,0.254422]
[1723622701495,0.002,60861.0,60860.0,0.32001072]
[1723622702493,0.002,60861.0,60860.0,0.254422]
[1723622703095,0.002,60861.0,60860.0,0.140922]
[1723622703692,0.002,60861.0,60860.0,0.0588]
[1723622703693,0.08412,60861.0,60860.0,0.0588]
[1723622704305,0.19762,60861.0,60860.0,0.0588]
[1723622704594,0.082125,60858.0,60857.0,0.07518435]
[1723622704799,0.195625,60858.0,60857.0,0.06558872]
[1723622705602,0.082125,60858.0,60857.0,0.06558872]
[1723622705795,0.082125,60858.0,60857.0,0.14771472]
[1723622705993,0.082125,60858.0,60857.0,0.14971472]
[1723622707393,0.082125,60858.0,60857.0,0.15956542]
[1723622707598,0.195625,60858.0,60857.0,0.15956542]
[1723622715303,0.195625,60858.0,60857.0,0.0939767]
[1723622722412,0.26124206,60858.0,60857.0,0.0939767]
[1723622723314,0.195625,60858.0,60857.0,0.0939767]
[1723622723515,0.26132915,60858.0,60857.0,0.0939767]
[1723622728915,0.195625,60858.0,60857.0,0.0939767]
[1723622729112,0.082132,60852.0,60851.0,0.00020148]
[1723622729413,0.638564,60852.0,60851.0,0.00020148]
[1723622729604,0.638564,60852.0,60851.0,0.06588014]
[1723622729917,0.70421789,60852.0,60851.0,0.06588014]
[1723622730313,0.638564,60852.0,60851.0,0.06588014]
[1723622730510,0.638564,60852.0,60851.0,0.00020148]
[1723622730907,0.638564,60852.0,60851.0,0.00320148]
[1723622731511,0.70417879,60852.0,60851.0,0.00320148]
[1723622732618,0.70517879,60852.0,60851.0,0.00320148]
[1723622734518,0.639564,60852.0,60851.0,0.00320148]
[1723622734922,0.70517879,60852.0,60851.0,0.00320148]
[1723622735322,0.70517879,60852.0,60851.0,0.05241363]
[1723622735829,0.4753,60852.0,60851.0,0.08533548]
[1723622736025,0.001,60852.0,60851.0,0.19883548]
[1723622737023,0.001,60852.0,60851.0,0.08533548]
[1723622737221,0.001,60852.0,60851.0,0.15093941]
[1723622737421,0.3618,60852.0,60851.0,0.08533548]
[1723622737818,0.001,60852.0,60851.0,0.19883548]
[1723622740023,0.001,60852.0,60851.0,0.08533548]
[1723622743723,0.001,60852.0,60851.0,0.13883548]
[1723622755739,0.083132,60852.0,60851.0,0.13883548]
[1723622755935,0.083132,60852.0,60851.0,0.08533548]
[1723622756136,0.083132,60852.0,60851.0,0.00320148]
[1723622758936,0.083132,60852.0,60851.0,0.06886157]
[1723622759129,0.14874679,60852.0,60851.0,0.00320148]
[1723622760645,0.14774679,60852.0,60851.0,0.00020148]
[1723622760848,0.14774679,60852.0,60851.0,0.00120148]
[1723622762637,0.082132,60852.0,60851.0,0.00120148]
[1723622763336,0.14776698,60852.0,60851.0,0.00120148]
[1723622763535,0.082132,60852.0,60851.0,0.00120148]
[1723622764243,0.164264,60852.0,60851.0,0.00120148]
[1723622768346,0.277764,60852.0,60851.0,0.00120148]
[1723622768543,0.277764,60852.0,60851.0,0.06687939]
[1723622771450,0.277764,60852.0,60851.0,0.00120148]
[1723622773152,0.359896,60852.0,60851.0,0.06687939]
[1723622773346,0.359896,60852.0,60851.0,0.00120148]
[1723622774644,0.459896,60852.0,60851.0,0.00120148]
[1723622774852,0.24012974,60852.0,60847.0,0.04924544]
[1723622775046,0.607214,60848.0,60847.0,0.04924544]
[1723622775251,0.164282,60846.0,60845.0,0.04924544]
[1723622775448,0.277782,60846.0,60845.0,0.04924544]
[1723622775653,0.164284,60845.0,60844.0,0.04924544]
[1723622775846,0.27794086,60845.0,60844.0,0.04924544]
[1723622776354,0.164286,60844.0,60843.0,0.04924544]
[1723622776542,0.082147,60841.0,60840.0,0.07526468]
[1723622776748,0.195647,60841.0,60840.0,0.07526468]
[1723622777451,0.277794,60841.0,60840.0,0.07526468]
[1723622778152,0.277794,60841.0,60838.0,0.135351]
[1723622778153,0.1145,60841.0,60838.0,0.04921747]
[1723622778457,0.1145,60841.0,60835.0,0.04921747]
[1723622778458,0.082154,60836.0,60835.0,0.04921747]
[1723622778649,0.082155,60835.0,60834.0,0.1135]
[1723622779457,0.082155,60835.0,60834.0,0.17907869]
[1723622780152,0.082155,60835.0,60834.0,0.26123569]
[1723622780358,0.082155,60835.0,60834.0,0.195657]
[1723622780950,0.083155,60835.0,60834.0,0.196657]
[1723622781955,0.084155,60835.0,60834.0,0.196657]